{"text_format":"1","workbook":"xlsx","n_sheets":2,"sheets":["Arkusz1","NCW"],"not_rendered":{"charts":0,"images":0,"macros":1,"external_links":0,"defined_names":2,"comments":0,"pivot_tables":0},"unopened":[],"bounds":{"document_bytes":16777216,"sheet_cells":100000,"rows_first":2000,"rows_last":500,"rows_between":2000,"halvings":0,"cell_chars":16384,"cell_head_chars":4096},"cells_cut":0,"cells_raw":0,"read":"whole","date_system":"1900"}

{"sheet":"Arkusz1","index":0,"n_rows":13,"n_cols":3,"rows_kept":13,"cut":false,"hidden":true,"merged":[]}
["bioetanol"]
["ester metylowy kw. tł.",null,1]
["ester etylowy kw. tł."]
["biometanol"]
["bioeter dimetylowy"]
["czysty olej roślinny"]
["biobutanol"]
["bio propan-butan"]
["skroplony biometan"]
["sprężony biometan"]
["biowodór"]
["biowęglowodory ciekłe do silników - ZI"]
["biowęglowodory ciekłe do silników - ZS"]

{"sheet":"NCW","index":1,"n_rows":159,"n_cols":30,"rows_kept":159,"cut":false,"hidden":false,"merged":[[81,16,81,19],[82,16,82,19],[8,0,8,13],[8,15,8,27],[61,16,63,19],[64,16,64,19],[66,16,66,19],[67,16,67,19],[68,16,68,19],[69,16,69,19],[70,16,70,19],[17,0,17,13],[17,15,17,27],[50,0,52,6],[50,7,50,8],[51,7,51,8],[52,7,52,8],[50,12,50,13],[74,0,74,8],[74,10,74,12],[71,1,71,27],[75,0,75,8],[75,10,75,12],[75,13,75,15],[126,2,126,10],[126,12,126,14],[126,15,126,17],[126,18,126,20],[126,21,126,23],[124,2,125,4],[124,5,124,10],[124,12,124,14],[124,15,124,17],[124,18,124,20],[125,5,125,10],[125,12,125,14],[125,15,125,17],[125,18,125,20],[124,21,124,23],[125,21,125,23],[118,18,118,20],[119,18,119,20],[116,15,116,17],[116,21,116,23],[103,21,103,23],[102,21,102,23],[98,21,98,23],[110,2,111,11],[111,18,111,20],[111,21,111,23],[106,12,106,14],[107,12,107,14],[106,2,107,4],[114,15,114,17],[115,15,115,17],[119,12,119,14],[119,15,119,17],[92,12,93,14],[84,20,84,21],[85,13,85,15],[86,16,86,19],[87,16,87,19],[96,18,96,20],[84,0,84,8],[84,10,84,12],[85,0,85,8],[85,10,85,12],[87,0,87,8],[87,10,87,12],[87,13,87,15],[87,20,87,21],[95,2,95,10],[96,2,96,10],[84,13,84,15],[91,2,91,23],[92,15,93,17],[92,18,92,23],[93,18,93,20],[93,21,93,23],[94,21,94,23],[92,2,93,11],[75,20,75,21],[75,22,75,27],[72,0,72,8],[72,10,72,12],[73,22,73,27],[74,22,74,27],[75,16,75,19],[81,0,81,8],[81,10,81,12],[81,13,81,15],[79,22,79,27],[77,1,77,27],[76,0,76,8],[79,20,79,21],[80,10,80,12],[78,0,78,8],[78,20,78,21],[78,22,78,27],[76,22,76,27],[78,10,78,12],[78,13,78,15],[80,13,80,15],[80,20,80,21],[76,10,76,12],[120,12,120,14],[120,15,120,17],[121,2,121,10],[94,12,94,14],[121,12,121,14],[122,2,122,10],[122,12,122,14],[96,12,96,14],[109,2,109,23],[114,2,114,10],[114,12,114,14],[120,2,120,10],[115,4,115,10],[115,12,115,14],[97,2,98,3],[103,12,103,14],[116,4,116,10],[97,18,97,20],[97,21,97,23],[98,18,98,20],[100,18,100,20],[122,21,122,23],[94,15,94,17],[94,18,94,20],[52,12,52,13],[48,5,48,8],[49,5,49,8],[51,12,51,13],[48,0,49,4],[0,16,0,27],[2,16,3,27],[7,15,7,27],[9,15,9,27],[10,15,10,27],[11,15,11,27],[12,15,12,27],[13,15,13,27],[14,15,14,27],[0,0,0,15],[10,0,10,13],[7,0,7,13],[2,0,2,15],[3,0,3,15],[9,0,9,13],[12,0,12,13],[11,0,11,13],[14,0,14,13],[13,0,13,13],[21,1,21,28],[15,15,15,27],[16,15,16,27],[23,0,23,27],[42,10,42,11],[43,10,43,11],[35,0,35,8],[35,10,35,11],[15,0,15,13],[40,0,40,8],[40,10,40,11],[16,0,16,13],[19,1,19,28],[28,16,28,17],[31,0,31,8],[26,20,27,20],[26,21,27,21],[26,22,27,22],[39,0,39,8],[30,0,30,8],[43,0,43,8],[42,0,42,8],[41,0,41,8],[37,0,38,3],[66,22,66,27],[66,13,66,15],[73,13,73,15],[73,20,73,21],[156,2,157,14],[156,15,157,15],[156,16,157,24],[158,2,159,14],[158,15,159,15],[158,16,159,24],[154,2,155,14],[154,15,155,15],[154,16,155,24],[82,20,82,27],[84,16,84,19],[85,16,85,19],[82,10,82,15],[89,3,89,22],[83,1,83,27],[86,0,86,8],[86,10,86,12],[86,13,86,15],[86,20,86,21],[86,22,86,27],[68,10,68,12],[69,0,69,8],[69,13,69,15],[68,22,68,27],[70,22,70,27],[70,0,70,8],[70,13,70,15],[69,22,69,27],[67,22,67,27],[38,4,38,8],[64,13,64,15],[59,0,59,27],[61,0,63,9],[61,10,63,12],[61,13,63,15],[53,0,53,8],[53,12,53,13],[53,14,53,15],[53,16,53,17],[53,10,53,11],[44,0,44,8],[46,0,46,8],[47,0,47,8],[52,10,52,11],[45,10,45,11],[50,14,50,15],[51,14,51,15],[64,0,64,9],[64,20,64,21],[52,14,52,15],[50,16,50,17],[51,16,51,17],[52,16,52,17],[64,22,64,27],[60,29,61,29],[31,10,31,11],[31,12,31,13],[31,14,31,15],[31,16,31,17],[47,10,47,11],[48,10,48,11],[49,10,49,11],[50,10,50,11],[44,10,44,11],[35,12,35,13],[32,10,32,11],[33,14,33,15],[35,16,35,17],[33,12,33,13],[38,10,38,11],[61,20,63,21],[35,14,35,15],[36,10,36,11],[36,12,36,13],[61,22,63,27],[51,10,51,11],[37,12,49,27],[37,4,37,8],[46,10,46,11],[27,14,27,15],[25,10,27,11],[30,16,30,17],[26,23,27,23],[25,12,25,27],[28,14,28,15],[25,0,27,9],[32,0,32,8],[33,0,33,8],[26,12,27,13],[28,12,28,13],[45,0,45,8],[39,10,39,11],[26,14,26,17],[36,0,36,8],[28,0,28,9],[26,26,26,27],[36,14,36,15],[36,16,36,17],[32,14,32,15],[32,12,32,13],[34,0,34,27],[74,13,74,15],[74,20,74,21],[76,13,76,15],[64,10,64,12],[66,20,66,21],[70,10,70,12],[69,20,69,21],[70,20,70,21],[76,20,76,21],[74,16,74,19],[72,13,72,15],[72,20,72,21],[67,20,67,21],[68,20,68,21],[76,16,76,19],[65,1,65,27],[72,22,72,27],[73,0,73,8],[73,10,73,12],[72,16,72,19],[73,16,73,19],[67,0,67,8],[67,10,67,12],[68,0,68,8],[78,16,78,19],[79,16,79,19],[80,16,80,19],[80,22,80,27],[81,20,81,21],[81,22,81,27],[85,20,85,21],[41,10,41,11],[27,16,27,17],[28,10,28,11],[54,0,54,27],[37,10,37,11],[29,0,29,27],[33,16,33,17],[33,10,33,11],[30,12,30,13],[30,14,30,15],[30,10,30,11],[32,16,32,17],[26,24,27,24],[26,25,27,25],[26,18,27,18],[26,19,27,19],[82,0,82,8],[79,0,79,8],[79,10,79,12],[80,0,80,8],[79,13,79,15],[121,15,121,17],[101,21,101,23],[99,18,99,20],[108,18,108,20],[108,21,108,23],[95,21,95,23],[102,18,102,20],[103,18,103,20],[95,18,95,20],[87,22,87,27],[84,22,84,27],[85,22,85,27],[117,2,117,10],[117,12,117,14],[118,2,118,10],[118,12,118,14],[116,18,116,20],[119,21,119,23],[120,18,120,20],[120,21,120,23],[123,15,123,17],[117,15,117,17],[95,15,108,17],[97,4,97,10],[98,4,98,10],[97,12,97,14],[98,12,98,14],[99,12,99,14],[100,12,100,14],[101,12,101,14],[113,2,113,10],[113,12,113,14],[108,2,108,10],[108,12,108,14],[104,12,104,14],[105,12,105,14],[103,2,103,10],[115,2,116,3],[113,15,113,17],[122,15,122,17],[123,2,123,10],[123,12,123,14],[118,15,118,17],[119,2,119,10],[94,2,94,11],[106,5,106,10],[107,5,107,10],[110,12,111,14],[110,15,111,17],[100,21,100,23],[116,12,116,14],[95,12,95,14],[101,18,101,20],[123,18,123,20],[123,21,123,23],[113,21,113,23],[114,18,114,20],[114,21,114,23],[112,18,112,20],[112,21,112,23],[104,18,104,20],[106,18,106,20],[106,21,106,23],[107,18,107,20],[107,21,107,23],[104,21,104,23],[105,18,105,20],[105,21,105,23],[110,18,110,23],[115,18,115,20],[115,21,115,23],[118,21,118,23],[121,18,121,20],[117,18,117,20],[117,21,117,23],[121,21,121,23],[122,18,122,20],[55,0,55,8],[56,0,56,8],[57,0,57,8],[55,12,55,13],[55,14,55,15],[55,16,55,17],[56,12,56,13],[57,12,57,13],[56,14,56,15],[57,14,57,15],[56,16,56,17],[57,16,57,17],[55,10,55,11],[57,10,57,11],[56,10,56,11],[66,0,66,8],[66,10,66,12],[67,13,67,15],[68,13,68,15],[69,10,69,12],[127,2,127,23],[128,2,129,14],[128,15,129,17],[128,18,128,23],[129,18,129,20],[129,21,129,23],[104,2,104,10],[105,2,105,10],[99,2,99,10],[113,18,113,20],[112,2,112,11],[112,12,112,14],[112,15,112,17],[102,12,102,14],[102,2,102,10],[100,2,100,10],[101,2,101,10],[99,21,99,23],[96,21,96,23],[130,2,130,14],[130,15,130,17],[130,18,130,20],[130,21,130,23],[147,19,147,21],[147,22,147,24],[148,19,148,21],[131,2,131,13],[131,15,131,17],[131,18,131,20],[131,21,131,23],[132,2,132,13],[132,15,132,17],[132,18,132,20],[132,21,132,23],[133,2,133,13],[133,15,133,17],[133,18,133,20],[133,21,133,23],[148,22,148,24],[149,2,149,17],[149,19,149,21],[149,22,149,24],[152,2,153,14],[152,15,153,15],[152,16,153,24],[134,2,134,13],[134,15,134,17],[134,18,134,20],[134,21,134,23],[135,2,135,13],[135,21,135,23],[145,19,145,21],[145,22,145,24],[144,2,144,24],[145,2,146,18],[146,19,146,21],[146,22,146,24],[151,2,151,24],[147,2,147,18],[148,2,148,17],[136,21,136,23],[136,2,136,13],[135,15,136,20]]}
["PODMIOTY REALIZUJĄCE NARODOWY CEL WSKAŹNIKOWY",null,null,null,null,null,null,null,null,null,null,null,null,null,null,null,"URE - NCW"]
[]
["Sprawozdanie roczne podmiotu realizującego\n Narodowy Cel Wskaźnikowy \nw zakresie realizacji tego celu",null,null,null,null,null,null,null,null,null,null,null,null,null,null,null,"Sprawozdanie należy przekazać w terminie 90 dni \npo zakończeniu roku kalendarzowego, \nnastępującego po roku, którego dotyczy sprawozdanie, \nna adres:\n\nUrząd Regulacji Energetyki\nAl. Jerozolimskie 181, 02-222 Warszawa"]
["za rok: 2015"]
[]
["Podstawa prawna: art. 30b ustawy z dnia 25 sierpnia 2006 r. o biokomponentach i biopaliwach ciekłych (Dz. U. z 2015 r. poz. 775)"]
[]
[" Oznaczenie firmy podmiotu realizującego Narodowy Cel Wskaźnikowy",null,null,null,null,null,null,null,null,null,null,null,null,null,1]
[" Kraj",null,null,null,null,null,null,null,null,null,null,null,null,null,2]
[" Ulica",null,null,null,null,null,null,null,null,null,null,null,null,null,3]
[" Kod pocztowy",null,null,null,null,null,null,null,null,null,null,null,null,null,4]
[" Miejscowość",null,null,null,null,null,null,null,null,null,null,null,null,null,5]
[" Województwo ",null,null,null,null,null,null,null,null,null,null,null,null,null,6]
[" Nr identyfikacyjny - REGON",null,null,null,null,null,null,null,null,null,null,null,null,null,7]
[" Nr identyfikacji podatkowej - NIP",null,null,null,null,null,null,null,null,null,null,null,null,null,8]
[" Nr koncesji na wytwarzanie paliw ciekłych (WPC)",null,null,null,null,null,null,null,null,null,null,null,null,null,9]
[" Nr koncesji na obrót paliwami ciekłymi (OPC)",null,null,null,null,null,null,null,null,null,null,null,null,null,10]
[" Nr koncesji na obrót paliwami ciekłymi z zagranicą (OPZ)",null,null,null,null,null,null,null,null,null,null,null,null,null,11]
[]
[null,"Przed wypełnieniem formularza należy zapoznać się z objaśnieniami "]
[" "]
[null,"Uwaga: Dla prawidłowego działania arkusza należy włączyć uruchamianie makr."]
[]
["DZIAŁ 1. ILOŚCI PALIW CIEKŁYCH, BIOPALIW CIEKŁYCH I INNYCH PALIW ODNAWIALNYCH, SPRZEDANYCH, ZBYTYCH W INNEJ FORMIE LUB ZUŻYTYCH NA POTRZEBY WŁASNE W TRANSPORCIE DROGOWYM I KOLEJOWYM"]
[]
["Wyszczególnienie",null,null,null,null,null,null,null,null,null,"Ilość \n[ton]",null,"w tym zawartość biokomponentu [ton]"]
[null,null,null,null,null,null,null,null,null,null,null,null,"bioetanol ",null,"ester",null,null,null,"biometanol","bioeter dimetylowy","czysty olej roślinny","biobutanol","bio propan-butan","skroplony biometan","sprężony biometan","biowodór","biowęglowodory ciekłe"]
[null,null,null,null,null,null,null,null,null,null,null,null,null,null,"metylowy \nkwasów tłuszcz.",null,"etylowy \nkwasów tłuszcz.",null,null,null,null,null,null,null,null,null,"do silników o zapłonie\n iskrowym","do silników o zapłonie samoczynnym"]
[0,null,null,null,null,null,null,null,null,null,1,null,2,null,3,null,4,null,5,6,7,8,9,10,11,12,13,14]
[" 1.1. Paliwa ciekłe"]
["benzyny silnikowe zawierające do 5,0% objęt. biokomponentów lub do 15,0% objęt. eteru etylo-tert-butyl. lub eteru etylo-tert-amylowego",null,null,null,null,null,null,null,null,101,0,null,0,null,0,null,0,null,0,0,0,0,0,0,0,0,0,0]
["benzyny silnikowe zawierające od 5% do 10,0% objęt. biokomponentów lub od 15,0% do 22,0% objęt. eteru etylo-tert-butylowego lub eteru etylo-tert-amylowego ",null,null,null,null,null,null,null,null,102,0,null,0,null,0,null,0,null,0,0,0,0,0,0,0,0,0,0]
["olej napędowy zawierający do 7,0% objęt. biokomponentów",null,null,null,null,null,null,null,null,103,0,null,0,null,0,null,0,null,0,0,0,0,0,0,0,0,0,0]
["RAZEM (suma wierszy od 101 do 103)",null,null,null,null,null,null,null,null,104,{"$f":"K31+K32+K33","v":0},null,{"$f":"M31+M32+M33","v":0},null,{"$f":"O31+O32+O33","v":0},null,{"$f":"Q31+Q32+Q33","v":0},null,{"$f":"S31+S32+S33","v":0},0,0,0,0,0,0,0,0,0]
[" 1.2. Biopaliwa  ciekłe"]
["benzyny silnikowe zawierające powyżej 10,0% objęt. biokomp. lub powyżej 22,0% objęt. eteru etylo-tert-butylowego lub eteru etylo-tert-amylowego ",null,null,null,null,null,null,null,null,105,0,null,0,null,0,null,0,null,0,0,0,0,0,0,0,0,0,0]
["olej napędowy zawier. powyżej 7% objęt. biokomponentów",null,null,null,null,null,null,null,null,106,0,null,0,null,0,null,0,null,0,0,0,0,0,0,0,0,0,0]
["ester stanowiący samoistne paliwo",null,null,null,"metylowy kwasów tłuszcz.",null,null,null,null,107,0]
[null,null,null,null,"etylowy kwasów tłuszcz.",null,null,null,null,108,0]
["bioetanol stanowiący samoistne paliwo ",null,null,null,null,null,null,null,null,109,0]
["biometanol stanowiący samoistne paliwo",null,null,null,null,null,null,null,null,110,0]
["bioeter dimetylowy stanowiący samoistne paliwo",null,null,null,null,null,null,null,null,111,0]
["czysty olej roślinny stanowiący samoistne paliwo",null,null,null,null,null,null,null,null,112,0]
["biobutanol stanowiący samoistne paliwo",null,null,null,null,null,null,null,null,113,0]
["bio propan-butan stanowiący samoistne paliwo",null,null,null,null,null,null,null,null,114,0]
["skroplony biometan stanowiący samoistne paliwo",null,null,null,null,null,null,null,null,115,0]
["sprężony biometan stanowiący samoistne paliwo",null,null,null,null,null,null,null,null,116,0]
["biowodór stanowiący samoistne paliwo",null,null,null,null,null,null,null,null,117,0]
["biowęglowodory ciekłe stanowiące samoistne paliwo",null,null,null,null,"do siln. o zapł. iskrowym",null,null,null,118,0]
[null,null,null,null,null,"do siln. o zapł. samoczynnym",null,null,null,119,0]
["biopaliwa ciekłe produkowane z biomasy i stanowiące samoistne paliwa inne niż wymienione w wierszach 107-119",null,null,null,null,null,null,"rodzaj 1:",null,120,0,null,0,null,0,null,0,null,0,0,0,0,0,0,0,0,0,0]
[null,null,null,null,null,null,null,"rodzaj 2:",null,121,0,null,0,null,0,null,0,null,0,0,0,0,0,0,0,0,0,0]
[null,null,null,null,null,null,null,"rodzaj 3:",null,122,0,null,0,null,0,null,0,null,0,0,0,0,0,0,0,0,0,0]
["RAZEM (suma wierszy od 105 do 122)",null,null,null,null,null,null,null,null,123,{"$f":"SUM(K36:K53)","v":0},null,{"$f":"M36+M37+SUM(M51:N53)","v":0},null,{"$f":"O36+O37+SUM(O51:P53)","v":0},null,{"$f":"Q36+Q37+SUM(Q51:R53)","v":0},null,{"$f":"SUM(S36:S37, S51:S53)","v":0},{"$f":"SUM(T36:T37, T51:T53)","v":0},{"$f":"SUM(U36:U37, U51:U53)","v":0},{"$f":"SUM(V36:V37, V51:V53)","v":0},{"$f":"W36+W37+SUM(W51:W53)","v":0},{"$f":"X36+X37+SUM(X51:X53)","v":0},{"$f":"Y36+Y37+SUM(Y51:Y53)","v":0},{"$f":"SUM(Z36:Z37, Z51:Z53)","v":0},{"$f":"SUM(AA36:AA37, AA51:AA53)","v":0},{"$f":"SUM(AB36:AB37, AB51:AB53)","v":0}]
[" 1.3. Inne paliwa odnawialne"]
["rodzaj 1:",null,null,null,null,null,null,null,null,124,0,null,0,null,0,null,0,null,0,0,0,0,0,0,0,0,0,0]
["rodzaj 2:",null,null,null,null,null,null,null,null,125,0,null,0,null,0,null,0,null,0,0,0,0,0,0,0,0,0,0]
["rodzaj 3:",null,null,null,null,null,null,null,null,126,0,null,0,null,0,null,0,null,0,0,0,0,0,0,0,0,0,0]
[]
["DZIAŁ 2. BIOKOMPONENTY WYKORZYSTANE W PALIWACH CIEKŁYCH, BIOPALIWACH CIEKŁYCH I INNYCH PALIWACH ODNAWIALNYCH ZUŻYTYCH WE WSZYSTKICH RODZAJACH TRANSPORTU SPEŁNIAJĄCE KRYTERIA ZRÓWNOWAŻONEGO ROZWOJU"]
[null,null,null,null,null,null,null,null,null,null,null,null,null,null,null,null,null,null,null,null,null,null,null,null,null,null,null,null,null,"biowęglowodory ciekłe"]
["Oznaczenie firmy dostawcy biokomponentu",null,null,null,null,null,null,null,null,null,"NIP dostawcy",null,null,"Rodzaj biokomponentu\n(wybierz z listy)",null,null,"Ilość [ton]",null,null,null,"Poziom emisji gazów cieplarnianych \n[gCO₂eq/MJ]",null,"Nazwa uznanego syst. certyfikacji/data umowy o której mowa w art. 28c ust. 2 pkt 2 ustawy o biokomponentach i biopaliwach ciekłych"]
[]
[]
[0,null,null,null,null,null,null,null,null,null,1,null,null,2,null,null,3,null,null,null,4,null,5]
["2.1.","Biokomponenty wytworzone przez wytwórców, prowadzących działalność gospodarczą w zakresie wytwarzania biokomponentów, z surowców rolniczych pozyskiwanych z gospodarstwa rolnego położonego na obszarze co najmniej jednego z państw członkowskich Unii Europejskiej, w Republice Turcji albo w państwie członkowskim Europejskiego Porozumienia o Wolnym Handlu (EFTA) - stronie umowy o Europejskim Obszarze Gospodarczym na podstawie umowy kontraktacji zawartej między producentem rolnym prowadzącym to gospodarstwo a wytwórcą, przetwórcą lub pośrednikiem "]
[null,null,null,null,null,null,null,null,null,"201a",null,null,null,null,null,null,0]
[null,null,null,null,null,null,null,null,null,"201b",null,null,null,null,null,null,0]
[null,null,null,null,null,null,null,null,null,"201c",null,null,null,null,null,null,0]
[null,null,null,null,null,null,null,null,null,"201d",null,null,null,null,null,null,0]
[null,null,null,null,null,null,null,null,null,"201e",null,null,null,null,null,null,0]
["2.2.","Biokomponenty wytworzone przez wytwórców, prowadzących działalność gospodarczą w zakresie wytwarzania biokomponentów, z biomasy pozyskanej na podstawie umowy dostawy zawartej między wytwórcą a pośrednikiem lub przetwórcą"]
[null,null,null,null,null,null,null,null,null,"202a",null,null,null,null,null,null,0]
[null,null,null,null,null,null,null,null,null,"202b",null,null,null,null,null,null,0]
[null,null,null,null,null,null,null,null,null,"202c",null,null,null,null,null,null,0]
[null,null,null,null,null,null,null,null,null,"202d",null,null,null,null,null,null,0]
[null,null,null,null,null,null,null,null,null,"202e",null,null,null,null,null,null,0]
["2.3.","Biokomponenty wytworzone przez wytwórców, prowadzących działalność gospodarczą w zakresie wytwarzania biokomponentów, z surowców rolniczych pozyskanych z produkcji własnej wytwórców"]
[null,null,null,null,null,null,null,null,null,"203a",null,null,null,null,null,null,0]
[null,null,null,null,null,null,null,null,null,"203b",null,null,null,null,null,null,0]
[null,null,null,null,null,null,null,null,null,"203c",null,null,null,null,null,null,0]
[null,null,null,null,null,null,null,null,null,"203d",null,null,null,null,null,null,0]
["RAZEM (suma wierszy od 201 do 203)",null,null,null,null,null,null,null,null,"203z",null,null,null,null,null,null,{"$f":"Q67+Q68+Q69+Q70+Q71+Q73+Q74+Q75+Q76+Q77+Q79+Q80+Q81+Q82","v":0}]
["2.4.","Biokomponenty wytworzone z surowców rolniczych lub biomasy pozyskanych w inny sposób niż określony wyżej w pkt 2.1 - 2.3"]
[null,null,null,null,null,null,null,null,null,"204a",null,null,null,null,null,null,0]
[null,null,null,null,null,null,null,null,null,"204b",null,null,null,null,null,null,0]
[null,null,null,null,null,null,null,null,null,"204c",null,null,null,null,null,null,0]
[null,null,null,null,null,null,null,null,null,"204d",null,null,null,null,null,null,0]
[]
[null,null,null,"DZIAŁ 3. REALIZACJA NARODOWEGO CELU WSKAŹNIKOWEGO "]
[]
[null,null,"3.1. Wartość opałowa biokomponentów zawartych w paliwach ciekłych, biopaliwach ciekłych sprzedanych, zbytych w innej formie lub zużytych na potrzeby własne w transporcie drogowym i kolejowym (patrz Dział 1)"]
[null,null,"Wyszczególnienie",null,null,null,null,null,null,null,null,null,"Ilość\n[ton]",null,null,null,null,null,"Wartość opałowa"]
[null,null,null,null,null,null,null,null,null,null,null,null,null,null,null,null,null,null,"[MJ/kg]",null,null,"[MJ]"]
[null,null,"0",null,null,null,null,null,null,null,null,null,"1",null,null,2,null,null,3,null,null,4]
[null,null,"bioetanol",null,null,null,null,null,null,null,null,301,{"$f":"M34+K40+M54+SUM(M51:M53)","v":0},null,null,null,null,null,27,null,null,{"$f":"M96*S96*1000","v":0}]
[null,null,"biometanol",null,null,null,null,null,null,null,null,302,{"$f":"S34+K41+S54+SUM(S51:S53)","v":0},null,null,null,null,null,20,null,null,{"$f":"M97*S97*1000","v":0}]
[null,null,"ester ",null,"metylowy kwasów tłuszczowych",null,null,null,null,null,null,303,{"$f":"O34+K38+O54+SUM(O51:P53)","v":0},null,null,null,null,null,37,null,null,0]
[null,null,null,null,"etylowy kwasów tłuszczowych",null,null,null,null,null,null,304,{"$f":"Q34+K39+Q54+SUM(Q51:R53)","v":0},null,null,null,null,null,40.1,null,null,0]
[null,null,"bioeter dimetylowy",null,null,null,null,null,null,null,null,305,{"$f":"T34+K42+T54+SUM(T51:T53)","v":0},null,null,null,null,null,28,null,null,0]
[null,null,"czysty olej roślinny",null,null,null,null,null,null,null,null,306,{"$f":"U34+K43+U54+SUM(U51:U53)","v":0},null,null,null,null,null,37,null,null,0]
[null,null,"biobutanol",null,null,null,null,null,null,null,null,307,{"$f":"V34+K44+V54+SUM(V51:V53)","v":0},null,null,null,null,null,33,null,null,0]
[null,null,"bio propan-butan",null,null,null,null,null,null,null,null,308,{"$f":"W34+K45+W54+SUM(W51:W53)","v":0},null,null,null,null,null,0,null,null,0]
[null,null,"skroplony biometan",null,null,null,null,null,null,null,null,309,{"$f":"X34+K46+X54+SUM(X51:X53)","v":0},null,null,null,null,null,0,null,null,0]
[null,null,"sprężony biometan",null,null,null,null,null,null,null,null,310,{"$f":"Y34+K47+Y54+SUM(Y51:Y53)","v":0},null,null,null,null,null,50,null,null,0]
[null,null,"biowodór",null,null,null,null,null,null,null,null,311,{"$f":"Z34+K48+Z54+SUM(Z51:Z53)","v":0},null,null,null,null,null,120,null,null,0,null,null,null,"TAK"]
[null,null,"biowęglowodory ciekłe",null,null,"do silników z zapłonem iskrowym",null,null,null,null,null,312,{"$f":"AA34+K49+AA54+SUM(AA51:AA53)","v":0},null,null,null,null,null,43,null,null,0,null,null,null,"NIE"]
[null,null,null,null,null,"do silników z zapłonem samoczynnym",null,null,null,null,null,313,{"$f":"AB34+K50+AB54+SUM(AB51:AB53)","v":0},null,null,null,null,null,44,null,null,0]
[null,null,"RAZEM (suma wierszy od 301 do 313)",null,null,null,null,null,null,null,null,314,{"$f":"SUM(M96:O108)","v":0},null,null,null,null,null,null,null,null,{"$f":"SUM(V96:V108)","v":0}]
[null,null,"3.2. Wartość opałowa biokomponentów zawartych w paliwach ciekłych, biopaliwach ciekłych i innych paliwach odnawialnych  sprzedanych, zbytych w innej formie lub zużytych na potrzeby własne we wszystkich rodzajach transportu (patrz Dział 2)."]
[null,null,"Wyszczególnienie",null,null,null,null,null,null,null,null,null,"Ilość\n[ton]",null,null,"w tym ilość zaliczona podwójnie \n[ton]",null,null,"Wartość opałowa"]
[null,null,null,null,null,null,null,null,null,null,null,null,null,null,null,null,null,null,"[MJ/kg]",null,null,"[MJ]"]
[null,null,"0",null,null,null,null,null,null,null,null,null,"1",null,null,2,null,null,3,null,null,4]
[null,null,"bioetanol",null,null,null,null,null,null,null,null,315,{"$f":"SUMIF($N$67:$P$71,\"bioetanol\", $Q$67:$R$71)+SUMIF($N$73:$P$77,\"bioetanol\", $Q$73:$R$77)+SUMIF($N$79:$P$82,\"bioetanol\", $Q$79:$R$82)+SUMIF($N$85:$P$88, \"bioetanol\", $Q$85:$R$88)","v":0},null,null,0,null,null,27,null,null,{"$f":"((M114-P114)*S114*1000)+(P114*2*S114*1000)","v":0}]
[null,null,"biometanol",null,null,null,null,null,null,null,null,316,{"$f":"SUMIF($N$67:$P$71,\"biometanol\", $Q$67:$R$71)+SUMIF($N$73:$P$77,\"biometanol\", $Q$73:$R$77)+SUMIF($N$79:$P$82,\"biometanol\", $Q$79:$R$82)+SUMIF($N$85:$P$88, \"biometanol\", $Q$85:$R$88)","v":0},null,null,0,null,null,20,null,null,0]
[null,null,"ester ",null,"metylowy kwasów tłuszczowych",null,null,null,null,null,null,317,{"$f":"SUMIF($N$67:$P$71,\"ester metylowy kw. tł.\", $Q$67:$R$71)+SUMIF($N$73:$P$77,\"ester metylowy kw. tł.\", $Q$73:$R$77)+SUMIF($N$79:$P$82,\"ester metylowy kw. tł.\", $Q$79:$R$82)+SUMIF($N$85:$P$88, \"ester metylowy kw. tł.\", $Q$85:$R$88)","v":0},null,null,0,null,null,37,null,null,0]
[null,null,null,null,"etylowy kwasów tłuszczowych",null,null,null,null,null,null,318,{"$f":"SUMIF($N$67:$P$71,\"ester etylowy kw. tł.\", $Q$67:$R$71)+SUMIF($N$73:$P$77,\"ester etylowy kw. tł.\", $Q$73:$R$77)+SUMIF($N$79:$P$82,\"ester etylowy kw. tł.\", $Q$79:$R$82)+SUMIF($N$85:$P$88, \"ester etylowy kw. tł.\", $Q$85:$R$88)","v":0},null,null,0,null,null,40.1,null,null,0]
[null,null,"bioeter dimetylowy",null,null,null,null,null,null,null,null,319,{"$f":"SUMIF($N$67:$P$71,\"bioeter dimetylowy\", $Q$67:$R$71)+SUMIF($N$73:$P$77,\"bioeter dimetylowy\", $Q$73:$R$77)+SUMIF($N$79:$P$82,\"bioeter dimetylowy\", $Q$79:$R$82)+SUMIF($N$85:$P$88, \"bioeter dimetylowy\", $Q$85:$R$88)","v":0},null,null,0,null,null,28,null,null,0]
[null,null,"czysty olej roślinny",null,null,null,null,null,null,null,null,320,{"$f":"SUMIF($N$67:$P$71,\"czysty olej roślinny\", $Q$67:$R$71)+SUMIF($N$73:$P$77,\"czysty olej roślinny\", $Q$73:$R$77)+SUMIF($N$79:$P$82,\"czysty olej roślinny\", $Q$79:$R$82)+SUMIF($N$85:$P$88, \"czysty olej roślinny\", $Q$85:$R$88)","v":0},null,null,0,null,null,37,null,null,0]
[null,null,"biobutanol",null,null,null,null,null,null,null,null,321,{"$f":"SUMIF($N$67:$P$71,\"biobutanol\", $Q$67:$R$71)+SUMIF($N$73:$P$77,\"biobutanol\", $Q$73:$R$77)+SUMIF($N$79:$P$82,\"biobutanol\", $Q$79:$R$82)+SUMIF($N$85:$P$88, \"biobutanol\", $Q$85:$R$88)","v":0},null,null,0,null,null,33,null,null,0]
[null,null,"bio propan-butan",null,null,null,null,null,null,null,null,322,{"$f":"SUMIF($N$67:$P$71,\"bio propan-butan\", $Q$67:$R$71)+SUMIF($N$73:$P$77,\"bio propan-butan\", $Q$73:$R$77)+SUMIF($N$79:$P$82,\"bio propan-butan\", $Q$79:$R$82)+SUMIF($N$85:$P$88, \"bio propan-butan\", $Q$85:$R$88)","v":0},null,null,0,null,null,0,null,null,0]
[null,null,"skroplony biometan",null,null,null,null,null,null,null,null,323,{"$f":"SUMIF($N$67:$P$71,\"skroplony biometan\", $Q$67:$R$71)+SUMIF($N$73:$P$77,\"skroplony biometan\", $Q$73:$R$77)+SUMIF($N$79:$P$82,\"skroplony biometan\", $Q$79:$R$82)+SUMIF($N$85:$P$88, \"skroplony biometan\", $Q$85:$R$88)","v":0},null,null,0,null,null,0,null,null,0]
[null,null,"sprężony biometan",null,null,null,null,null,null,null,null,324,{"$f":"SUMIF($N$67:$P$71,\"sprężony biometan\", $Q$67:$R$71)+SUMIF($N$73:$P$77,\"sprężony biometan\", $Q$73:$R$77)+SUMIF($N$79:$P$82,\"sprężony biometan\", $Q$79:$R$82)+SUMIF($N$85:$P$88, \"sprężony biometan\", $Q$85:$R$88)","v":0},null,null,0,null,null,50,null,null,0]
[null,null,"biowodór",null,null,null,null,null,null,null,null,325,{"$f":"SUMIF($N$67:$P$71,\"biowodór\", $Q$67:$R$71)+SUMIF($N$73:$P$77,\"biowodór\", $Q$73:$R$77)+SUMIF($N$79:$P$82,\"biowodór\", $Q$79:$R$82)+SUMIF($N$85:$P$88, \"biowodór\", $Q$85:$R$88)","v":0},null,null,0,null,null,120,null,null,0]
[null,null,"biowęglowodory ciekłe",null,null,"do silników z zapłonem iskrowym",null,null,null,null,null,326,{"$f":"SUMIF($N$67:$P$71,\"biowęglowodory ciekłe do silników - ZI\", $Q$67:$R$71)+SUMIF($N$73:$P$77,\"biowęglowodory ciekłe do silników - ZI\", $Q$73:$R$77)+SUMIF($N$79:$P$82,\"biowęglowodory ciekłe do silników - ZI\", $Q$79:$R$82)+SUMIF($N$85:$P$88, \"biowęglowodory ciekłe do silników - ZI\", $Q$85:$R$88)","v":0},null,null,0,null,null,43,null,null,0]
[null,null,null,null,null,"do silników z zapłonem samoczynnym",null,null,null,null,null,327,{"$f":"SUMIF($N$67:$P$71,\"biowęglowodory ciekłe do silników - ZS\", $Q$67:$R$71)+SUMIF($N$73:$P$77,\"biowęglowodory ciekłe do silników - ZS\", $Q$73:$R$77)+SUMIF($N$79:$P$82,\"biowęglowodory ciekłe do silników - ZS\", $Q$79:$R$82)+SUMIF($N$85:$P$88, \"biowęglowodory ciekłe do silników - ZS\", $Q$85:$R$88)","v":0},null,null,0,null,null,44,null,null,0]
[null,null,"RAZEM (suma wierszy od 315 do 327)",null,null,null,null,null,null,null,null,328,{"$f":"SUM(M114:O126)","v":0},null,null,{"$f":"SUM(P114:R126)","v":0},null,null,null,null,null,{"$f":"SUM(V114:V126)","v":0}]
[null,null,"3.3. Wartość opałowa paliw ciekłych i biopaliw ciekłych sprzedanych, zbytych w innej formie lub zużytych na potrzeby własne w transporcie drogowym i kolejowym (patrz Dział 1)."]
[null,null,"Wyszczególnienie",null,null,null,null,null,null,null,null,null,null,null,null,"Ilość \n[ton]",null,null,"Wartość opałowa"]
[null,null,null,null,null,null,null,null,null,null,null,null,null,null,null,null,null,null,"[MJ/kg]",null,null,"[MJ]"]
[null,null,"0",null,null,null,null,null,null,null,null,null,null,null,null,"1",null,null,"2",null,null,"3"]
[null,null,"czyste benzyny silnikowe zawarte w paliwach ciekłych",null,null,null,null,null,null,null,null,null,null,null,329,{"$f":"(K31+K32)-SUM(M31:AB31)-SUM(M32:AB32)","v":0},null,null,43,null,null,{"$f":"P132*1000*S132","v":0}]
[null,null,"czyste benzyny silnikowe zawarte w biopaliwach ciekłych",null,null,null,null,null,null,null,null,null,null,null,330,{"$f":"K36-SUM(M36:AB36)","v":0},null,null,43,null,null,{"$f":"P133*1000*S133","v":0}]
[null,null,"czysty olej napędowy zawarty w paliwach ciekłych",null,null,null,null,null,null,null,null,null,null,null,331,{"$f":"K33-SUM(M33:AB33)","v":0},null,null,43,null,null,{"$f":"P134*1000*S134","v":0}]
[null,null,"czysty olej napędowy zawarty w biopaliwach ciekłych",null,null,null,null,null,null,null,null,null,null,null,332,{"$f":"K37-SUM(M37:AB37)","v":0},null,null,43,null,null,{"$f":"P135*1000*S135","v":0}]
[null,null,"biokomponenty zawarte w paliwach ciekłych i biopaliwach ciekł. (w. 314)",null,null,null,null,null,null,null,null,null,null,null,333,null,null,null,null,null,null,{"$f":"V109","v":0}]
[null,null,"RAZEM (suma wierszy od 329 do 333)",null,null,null,null,null,null,null,null,null,null,null,334,null,null,null,null,null,null,{"$f":"SUM(V132:V136)","v":0}]
[]
[]
[]
[]
[]
[]
[]
[1,null,"  3.4. Udział biokomponentów wytworzonych z surowców rolniczych lub biomasy pozyskanych w sposób określony w Dziale 2 w pkt 2.1 - 2.3."]
[null,null,"Wyszczególnienie",null,null,null,null,null,null,null,null,null,null,null,null,null,null,null,null,"Ilość",null,null,"Udział"]
[null,null,null,null,null,null,null,null,null,null,null,null,null,null,null,null,null,null,null,"[ton]",null,null,"%"]
[null,null,"0",null,null,null,null,null,null,null,null,null,null,null,null,null,null,null,null,"1",null,null,"2"]
[null,null,"biokomponenty zawarte w paliwach ciekłych, biopaliwach ciekłych i innych paliwach odn. (w. 328)",null,null,null,null,null,null,null,null,null,null,null,null,null,null,null,335,{"$f":"IF(Arkusz1!C2=1,\"NIE DOTYCZY\",M127)","v":"NIE DOTYCZY"},null,null,1]
[null,null,"biokomponenty wytworzone z surowców rolniczych lub biomasy pozyskanych w sposób określony \nw Dziale 2 w pkt 2.1 - 2.3 (w. 203z)",null,null,null,null,null,null,null,null,null,null,null,null,null,null,null,336,{"$f":"IF(Arkusz1!C2=1,\"NIE DOTYCZY\",Q83)","v":"NIE DOTYCZY"},null,null,{"$f":"IF(Arkusz1!C2=1,\"NIE DOT.\",T150/T149)","v":"NIE DOT."}]
[]
[null,null," 3.5. Realizacja Narodowego Celu Wskaźnikowego"]
[null,null,"Narodowy Cel Wskaźnikowy [%]",null,null,null,null,null,null,null,null,null,null,null,null,337,7.0999999999999994E-2]
[]
[null,null,"Współczynnik redukcyjny",null,null,null,null,null,null,null,null,null,null,null,null,338,{"$f":"IF(Arkusz1!C2=1,\"NIE DOTYCZY\",0.85)","v":"NIE DOTYCZY"}]
[]
[null,null,"Obowiązkowy udział biokomponentów  [%]",null,null,null,null,null,null,null,null,null,null,null,null,339,{"$f":"IF(Arkusz1!C2=1,Q153,IF(T150/T149<0.7,Q153,Q153*Q155))","v":7.0999999999999994E-2}]
[]
[null,null,"Zrealizowany udział biokomponentów  [%]",null,null,null,null,null,null,null,null,null,null,null,null,340,{"$f":"V127/V137","v":{"$error":"#DIV/0!"}}]